fUST/lending_fUST_20260607
["ID","MTS","AMOUNT","RATE_DAILY","PERIOD"]
[424345802,1780774163000,-300.0,0.00010199,2]
[424345805,1780774163000,-300.0,0.00010199,2]
[424345808,1780774163000,-143.40054905,0.00010199,2]
[424345807,1780774163000,-300.0,0.00010199,2]
[424345806,1780774163000,-300.0,0.00010199,2]
[424345814,1780774166000,-131.52056947,0.00011977,2]
[424345813,1780774166000,-167.0,0.00011977,2]
[424345811,1780774166000,-420.0,0.00010888,2]
[424345812,1780774166000,-576.29554687,0.000115,2]
[424345809,1780774166000,-156.59945095,0.00010199,2]
[424345810,1780774166000,-420.0,0.00010888,2]
[424345849,1780774232000,-500.0,0.00014656,2]
[424345851,1780774232000,-285.0501652,0.00014656,2]
[424345834,1780774232000,-4724.93615008,0.00011857,2]
[424345847,1780774232000,-500.0,0.00014656,2]
[424345833,1780774232000,-275.06384992,0.00011857,2]
[424345839,1780774232000,-565.300857,0.00013699,2]
[424345837,1780774232000,-720.0,0.00013669,2]
[424345835,1780774232000,-123.06384992,0.00012427,2]
[424345836,1780774232000,-476.93615008,0.00012427,2]
[424345838,1780774232000,-500.0,0.00013698,2]
[424345854,1780774232000,-500.0,0.00014656,2]
[424345856,1780774232000,-500.0,0.00014656,2]
[424345841,1780774232000,-1000.0,0.00013699,2]
[424345861,1780774232000,-1342.150131,0.00014915,2]
[424345862,1780774232000,-305.47348218,0.00014936,2]
[424345860,1780774232000,-565.300857,0.00014658,2]
[424345858,1780774232000,-500.0,0.00014656,2]
[424345857,1780774232000,-500.0,0.00014656,2]
[424345845,1780774232000,-602.91058852,0.00014656,2]
[424345863,1780774232000,-1212.16987136,0.00014936,2]
[424345859,1780774232000,-500.0,0.00014656,2]
[424345843,1780774232000,-500.0,0.00014656,2]
[424345872,1780774238000,-300.0,0.00014948,2]
[424345922,1780774238000,-1000.0,0.0001654,2]
[424345914,1780774238000,-1440.307295,0.00016074,2]
[424345912,1780774238000,-168.0,0.00015726,3]
[424345918,1780774238000,-193.46200047,0.00016178,30]
[424345916,1780774238000,-150.0,0.00016178,30]
[424345910,1780774238000,-465.453284,0.00015304,2]
[424345902,1780774238000,-300.0,0.00014948,2]
[424345906,1780774238000,-4017.49494141,0.00015,2]
[424345898,1780774238000,-300.0,0.00014948,2]
[424345904,1780774238000,-300.0,0.00014948,2]
[424345900,1780774238000,-300.0,0.00014948,2]
[424345908,1780774238000,-864.0,0.00015036,2]
[424345894,1780774238000,-300.0,0.00014948,2]
[424345892,1780774238000,-39.73604423,0.00014948,2]
[424345876,1780774238000,-300.0,0.00014948,2]
[424345880,1780774238000,-300.0,0.00014948,2]
[424345890,1780774238000,-260.26395577,0.00014948,2]
[424345878,1780774238000,-300.0,0.00014948,2]
[424345888,1780774238000,-300.0,0.00014948,2]
[424345886,1780774238000,-24.99001966,0.00014948,2]
[424345882,1780774238000,-300.0,0.00014948,2]
[424345874,1780774238000,-300.0,0.00014948,2]
[424345884,1780774238000,-275.00998034,0.00014948,2]
[424345923,1780774238000,-1440.307295,0.00016751,2]
[424345896,1780774238000,-300.0,0.00014948,2]
[424345925,1780774238000,-2047.42912168,0.00017,2]
[424345927,1780774238000,-165.85218795,0.00017282,2]
[424345974,1780774238000,-597.88,0.00017394,2]
[424345976,1780774238000,-1105.15,0.00017394,2]
[424345972,1780774238000,-909.33,0.00017394,2]
[424345970,1780774238000,-1271.63,0.00017394,2]
[424345966,1780774238000,-186.31376658,0.00017393,2]
[424345968,1780774238000,-500.0,0.00017394,2]
[424345964,1780774238000,-150.46451633,0.00017311,2]
[424345953,1780774238000,-196.89761157,0.00017311,2]
[424345962,1780774238000,-157.28949579,0.00017311,2]
[424345920,1780774238000,-332.1343611,0.00016532,2]
[424345951,1780774238000,-198.90915554,0.00017311,2]
[424345949,1780774238000,-151.46292381,0.00017287,2]
[424345954,1780774238000,-291.54403374,0.00017311,2]
[424345947,1780774238000,-177.66004838,0.00017282,2]
[424345931,1780774238000,-192.03429147,0.00017282,2]
[424345935,1780774238000,-160.02032637,0.00017282,2]
[424345959,1780774238000,-449.71169732,0.00017311,2]
[424345937,1780774238000,-166.73867261,0.00017282,2]
[424345941,1780774238000,-180.21537391,0.00017282,2]
[424345933,1780774238000,-154.21915104,0.00017282,2]
[424345939,1780774238000,-220.77967923,0.00017282,2]
[424345945,1780774238000,-176.3359401,0.00017282,2]
[424345956,1780774238000,-157.65924131,0.00017311,2]
[424345960,1780774238000,-190.51182376,0.00017311,2]
[424345943,1780774238000,-193.52431957,0.00017282,2]
[424345929,1780774238000,-184.52045597,0.00017282,2]
[424345980,1780774239000,-500.46050813,0.00017394,2]
[424345982,1780774239000,-1440.307295,0.00017427,2]
[424345984,1780774239000,-31538.05568838,0.00017499,2]
[424345986,1780774239000,-166.28511411,0.00017499,2]
[424345988,1780774239000,-166.2851141,0.00017532,2]
[424345992,1780774239000,-529.32,0.00017588,3]
[424345994,1780774239000,-166.2851141,0.00017598,2]
[424346003,1780774239000,-17708.73550522,0.00017598,2]
[424345999,1780774239000,-73342.04559471,0.00017598,2]
[424345990,1780774239000,-166.2851141,0.00017565,2]
[424345996,1780774239000,-124153.41453397,0.00017598,2]
[424346001,1780774239000,-38522.78542967,0.00017598,2]
[424346268,1780774241000,-796.79517445,0.00017422,2]
[424346270,1780774241000,-1806.30804927,0.00017422,2]
[424346266,1780774241000,-500.0,0.00017422,2]
[424346592,1780774243000,-500.0,0.00017697,2]
[424346583,1780774243000,-1896.89677628,0.00017422,2]
[424346586,1780774243000,-10803.96526242,0.00017598,2]
[424346597,1780774243000,-1271.63,0.00017697,2]
[424346604,1780774243000,-909.33,0.00017697,2]
[424346590,1780774243000,-500.0,0.00017697,2]
[424346588,1780774243000,-34774.66891377,0.00017598,2]
[424346599,1780774243000,-1271.63,0.00017697,2]
[424346602,1780774243000,-909.33,0.00017697,2]
[424346595,1780774243000,-1271.63,0.00017697,2]
[424346606,1780774243000,-909.33,0.00017697,2]
[424346608,1780774243000,-597.88,0.00017697,2]
[424346622,1780774243000,-2512.25604105,0.00017698,2]
[424346610,1780774243000,-597.88,0.00017697,2]
[424346594,1780774243000,-500.0,0.00017697,2]
[424346614,1780774243000,-1105.15,0.00017697,2]
[424346612,1780774243000,-597.88,0.00017697,2]
[424346616,1780774243000,-1105.15,0.00017697,2]
[424346618,1780774243000,-1105.15,0.00017697,2]
[424346620,1780774243000,-6980.79810056,0.00017698,2]
[424346641,1780774244000,-1990.70963771,0.00017698,2]
[424346974,1780774246000,-760.34072277,0.00017698,2]
[424346976,1780774246000,-2150.00499999,0.00017698,2]
[424347035,1780774247000,-1271.63,0.00017698,2]
[424347025,1780774247000,-500.0,0.00017698,2]
[424347037,1780774247000,-1271.63,0.00017698,2]
[424347039,1780774247000,-1271.63,0.00017698,2]
[424347029,1780774247000,-426.20071211,0.00017698,2]
[424347028,1780774247000,-500.0,0.00017698,2]
[424347033,1780774247000,-1271.63,0.00017698,2]
[424347018,1780774247000,-500.0,0.00017698,2]
[424347031,1780774247000,-1271.63,0.00017698,2]
[424347021,1780774247000,-500.0,0.00017698,2]
[424347023,1780774247000,-500.0,0.00017698,2]
[424347020,1780774247000,-500.0,0.00017698,2]
[424347016,1780774247000,-500.0,0.00017698,2]
[424347041,1780774247000,-1271.63,0.00017698,2]
[424347026,1780774247000,-500.0,0.00017698,2]
[424347045,1780774247000,-1271.63,0.00017698,2]
[424347014,1780774247000,-34438.59582122,0.00017698,2]
[424347047,1780774247000,-1271.63,0.00017698,2]
[424347043,1780774247000,-1271.63,0.00017698,2]
[424347077,1780774247000,-637.42054205,0.00017698,2]
[424347075,1780774247000,-909.33,0.00017698,2]
[424347073,1780774247000,-909.33,0.00017698,2]
[424347069,1780774247000,-521.52324406,0.00017698,2]
[424347063,1780774247000,-1271.63,0.00017698,2]
[424347065,1780774247000,-394.80675594,0.00017698,2]
[424347067,1780774247000,-355.3,0.00017698,2]
[424347071,1780774247000,-1271.79948988,0.00017698,2]
[424347052,1780774247000,-1271.63,0.00017698,2]
[424347056,1780774247000,-1271.63,0.00017698,2]
[424347058,1780774247000,-1271.63,0.00017698,2]
[424347048,1780774247000,-1271.63,0.00017698,2]
[424347061,1780774247000,-1271.63,0.00017698,2]
[424347054,1780774247000,-1271.63,0.00017698,2]
[424347050,1780774247000,-1271.63,0.00017698,2]
[424347060,1780774247000,-1271.63,0.00017698,2]
[424347742,1780774312000,-372.362627,0.00015068,2]
[424347743,1780774330000,-5000.0,0.00017521,2]
[424347744,1780774348000,-160.08100852,0.00017287,2]
[424347752,1780775240000,-814.56269224,0.00010506,2]
[424347753,1780775240000,-2624.65532403,0.00010612,2]
[424347751,1780775240000,-314.06576937,0.000105,7]
[424347754,1780775252000,-433.53011661,0.00010612,2]
[424347755,1780775347000,-5000.0,0.00010401,2]
[424347757,1780775347000,-308.51605213,0.00010505,2]
[424347759,1780775347000,-4591.64346613,0.00010506,2]
[424347758,1780775347000,-614.55520803,0.00010505,2]
[424347756,1780775347000,-500.0,0.00010505,2]
[424347762,1780775356000,-168.809073,0.00010297,2]
[424347761,1780775356000,-151.0,0.00010297,2]
[424347760,1780775356000,-152.0,0.00010297,2]
[424347765,1780775363000,-408.35653387,0.00010506,2]
[424347764,1780775363000,-641.80795924,0.00010297,2]
[424347763,1780775363000,-303.0,0.00010194,2]
[424347768,1780775363000,-300.0,0.00011043,2]
[424347769,1780775363000,-138.74442382,0.00011612,2]
[424347767,1780775363000,-300.0,0.00011043,2]
[424347766,1780775363000,-418.0,0.00011043,2]
[424347770,1780775367000,167.596179,0.00015842,120]
[424347787,1780775432000,-361.755406,0.00015068,2]
[424347782,1780775432000,-5000.0,0.00010092,2]
[424347785,1780775432000,-1000.0,0.00014945,2]
[424347783,1780775432000,-62.10220837,0.00011612,2]
[424347786,1780775432000,-920.96,0.00014947,2]
[424347788,1780775432000,-160.0,0.00015726,3]
[424347784,1780775432000,-250.0,0.00013335,2]
[424347789,1780775432000,-167.596179,0.00015842,2]
[424347798,1780775432000,-1493.98227099,0.00017,2]
[424347791,1780775432000,-245.95459676,0.00016071,2]
[424347792,1780775432000,-720.153647,0.00016449,2]
[424347794,1780775432000,-655.44,0.00016999,2]
[424347793,1780775432000,-500.0,0.00016962,2]
[424347795,1780775432000,-129.77134778,0.00016999,2]
[424347797,1780775432000,-327.92219035,0.00017,2]
[424347796,1780775432000,-370.22865222,0.00016999,2]
[424347790,1780775432000,-896.51656524,0.00016071,2]
[424348167,1780775441000,-500.0,0.00017286,2]
[424348175,1780775441000,-167.97686835,0.00017287,2]
[424348169,1780775441000,-500.0,0.00017286,2]
[424348171,1780775441000,-500.0,0.00017286,2]
[424348183,1780775441000,-210.65032286,0.00017287,2]
[424348173,1780775441000,-174.17188761,0.00017287,2]
[424348161,1780775441000,-482.33605939,0.00017286,2]
[424348179,1780775441000,-153.95601526,0.00017287,2]
[424348185,1780775441000,-296.77649439,0.00017287,2]
[424348177,1780775441000,-153.38469135,0.00017287,2]
[424348163,1780775441000,-500.0,0.00017286,2]
[424348150,1780775441000,-171.63229674,0.00017286,2]
[424348157,1780775441000,-500.0,0.00017286,2]
[424348155,1780775441000,-172.83086233,0.00017286,2]
[424348145,1780775441000,-2449.77140226,0.00017256,2]
[424348158,1780775441000,-593.40110291,0.00017286,2]
[424348149,1780775441000,-188.62790873,0.00017286,2]
[424348147,1780775441000,-174.10092373,0.00017286,2]
[424348153,1780775441000,-160.86419008,0.00017286,2]
[424348142,1780775441000,-720.153647,0.00017142,2]
[424348140,1780775441000,-4261.09553866,0.00017,2]
[424348138,1780775441000,-152.0,0.00016244,7]
[424348165,1780775441000,-500.0,0.00017286,2]
[424348187,1780775441000,-165.11296564,0.00017287,2]
[424348181,1780775441000,-177.20785041,0.00017287,2]
[424348192,1780775441000,-151.90924753,0.00017287,2]
[424348189,1780775441000,-198.7017113,0.00017287,2]
[424348260,1780775441000,-8495.99972852,0.00017497,2]
[424348263,1780775441000,-7909.01872154,0.00017497,2]
[424348265,1780775441000,-1485.55645327,0.00017497,2]
[424348229,1780775441000,-2536.51378436,0.00017497,2]
[424348233,1780775441000,-2165.95456002,0.00017497,2]
[424348231,1780775441000,-1019.05201729,0.00017497,2]
[424348225,1780775441000,-952.97724851,0.00017497,2]
[424348223,1780775441000,-3885.45215023,0.00017497,2]
[424348220,1780775441000,-28205.33408764,0.00017497,2]
[424348218,1780775441000,-12202.45412262,0.00017497,2]
[424348214,1780775441000,-207644.83850807,0.00017497,2]
[424348227,1780775441000,-2761.43621564,0.00017497,2]
[424348202,1780775441000,-6088.83036308,0.00017299,2]
[424348190,1780775441000,-150.06480535,0.00017287,2]
[424348216,1780775441000,-22915.02475002,0.00017497,2]
[424348194,1780775441000,-459.45330204,0.00017287,2]
[424348196,1780775441000,-171.06089497,0.00017287,2]
[424348210,1780775441000,-2815.24507434,0.00017398,2]
[424348204,1780775441000,-22717.5564071,0.00017356,2]
[424348200,1780775441000,-500.0,0.00017298,2]
[424348212,1780775441000,-689.28,0.00017487,3]
[424348206,1780775441000,-920.96,0.00017393,2]
[424348208,1780775441000,-221.71348547,0.00017398,2]
[424348198,1780775441000,-655.44,0.00017298,2]
[424348396,1780775444000,-813.5,0.00017497,2]
[424348395,1780775444000,-468.942,0.00017497,2]
[424348403,1780775449000,-46355.38751532,0.00017497,2]
[424348402,1780775449000,-417.03153174,0.00017497,2]
[424348401,1780775449000,-409671.33388602,0.00017497,2]
[424348400,1780775449000,-276.5150003,0.00017497,2]
[424348399,1780775449000,-63614.1874677,0.00017497,2]
[424348417,1780775663000,-5000.0,0.00010083,2]
[424348418,1780775663000,-151.0,0.00010185,2]
[424348416,1780775663000,-1637.41441202,9.982e-05,2]
[424348421,1780775663000,-669.44862131,0.00011025,7]
[424348419,1780775663000,-686.4799977,0.000105,7]
[424348420,1780775663000,-686.4799977,0.0001071,7]
[424348422,1780775694000,-17.03137639,0.00011025,7]
[424348423,1780775748000,-221.71348547,0.0001134,7]
[424348424,1780775762000,-464.76651223,0.0001134,7]
[424348427,1780775815000,-686.47999774,0.0001176,7]
[424348430,1780775870000,-238.5040501,0.00014346,2]
[424348431,1780775923000,-1200.0,0.00014752,2]
[424348432,1780775977000,-500.0,0.00014751,2]
[424348433,1780776030000,-300.0,0.0001475,2]
[424348434,1780776084000,-300.0,0.0001475,2]
[424348435,1780776136000,-500.0,0.00014751,2]
[424348439,1780776331000,-53.26982633,0.00014603,2]
[424348438,1780776331000,-152.0,0.00011521,7]
[424348437,1780776331000,-152.0,0.00011521,7]
[424348445,1780776452000,-245.66409847,0.00014603,2]
[424348446,1780776502000,-689.28,0.00014457,2]
[424348447,1780776515000,-689.28,0.00014457,2]
[424348448,1780776530000,-2815.24507434,0.00014457,2]
[424348449,1780776543000,-806.19492566,0.00014457,2]
[424348450,1780776597000,-500.0,0.00014751,2]
[424348461,1780776631000,-270.24700176,0.00014752,2]
[424348474,1780776631000,-156.75469885,0.00017286,2]
[424348472,1780776631000,-163.54414544,0.00017275,2]
[424348470,1780776631000,-600.82,0.00017274,2]
[424348471,1780776631000,-156.61916285,0.00017275,2]
[424348475,1780776631000,-178.83154018,0.00017286,2]
[424348473,1780776631000,-165.25704317,0.00017286,2]
[424348469,1780776631000,-1000.0,0.00015767,2]
[424348468,1780776631000,-433.4581101,0.00015728,2]
[424348467,1780776631000,-5000.0,0.00015717,2]
[424348465,1780776631000,-500.0,0.00015716,2]
[424348464,1780776631000,-500.0,0.00015716,2]
[424348462,1780776631000,-806.933629,0.00015642,2]
[424348463,1780776631000,-327.723507,0.00015714,2]
[424348460,1780776631000,-392.07976699,0.00014751,2]
[424348466,1780776631000,-1416.2381714,0.00015717,2]
[424348476,1780776631000,-182.22803325,0.00017286,2]
[424348484,1780776631000,-150.70583271,0.00017287,2]
[424348478,1780776631000,-165.8090581,0.00017286,2]
[424348494,1780776631000,-500.0,0.00017296,2]
[424348492,1780776631000,-500.0,0.00017296,2]
[424348491,1780776631000,-500.0,0.00017296,2]
[424348490,1780776631000,-295.91975939,0.00017296,2]
[424348489,1780776631000,-500.0,0.00017296,2]
[424348488,1780776631000,-166.03592267,0.00017287,2]
[424348487,1780776631000,-294.35051682,0.00017287,2]
[424348493,1780776631000,-500.0,0.00017296,2]
[424348485,1780776631000,-159.48706537,0.00017287,2]
[424348486,1780776631000,-189.58529058,0.00017287,2]
[424348480,1780776631000,-150.14657008,0.00017287,2]
[424348479,1780776631000,-689.28,0.00017287,3]
[424348477,1780776631000,-168.1939281,0.00017286,2]
[424348483,1780776631000,-155.54777609,0.00017287,2]
[424348481,1780776631000,-190.15782593,0.00017287,2]
[424348482,1780776631000,-451.51729046,0.00017287,2]
[424348503,1780776632000,-27.29601094,0.00017297,2]
[424348501,1780776632000,-500.0,0.00015716,2]
[424348502,1780776632000,-37.82605577,0.00017297,2]
[424348500,1780776632000,-1575.4296774,0.00017297,2]
[424348498,1780776632000,-42320.11781391,0.00017297,2]
[424348496,1780776632000,-500.0,0.00017296,2]
[424348497,1780776632000,-523.06871221,0.00017296,2]
[424348495,1780776632000,-500.0,0.00017296,2]
[424348499,1780776632000,-433.45811007,0.00017297,2]
[424348529,1780776650000,-571.5428437,0.00015716,2]
[424348527,1780776650000,-152.0,0.00011244,7]
[424348530,1780776650000,-40117.94134124,0.00017297,2]
[424348528,1780776650000,-500.0,0.00015716,2]
[424348532,1780776650000,-119422.33672003,0.00017297,2]
[424348533,1780776650000,-71.88683066,0.00017297,2]
[424348534,1780776650000,-26399.50150064,0.00017297,2]
[424348535,1780776650000,-360.47544,0.00017297,2]
[424348531,1780776650000,-226820.02372304,0.00017297,2]
[424348536,1780776670000,1560.00690065,0.000245,34]
[424348537,1780776683000,152.95145391,0.000245,120]
[424348539,1780776684000,152.95145391,0.000245,120]
[424348538,1780776684000,152.95145391,0.000245,120]
[424348544,1780777007000,-367.03320827,0.00013889,14]
[424348545,1780777061000,-152.0,0.00011262,7]
[424348546,1780777114000,-151.0,0.00012163,2]
[424348549,1780777167000,-920.96,0.00014457,2]
[424348551,1780777181000,-3403.83922507,0.00014457,2]
[424348553,1780777234000,-300.0,0.00014917,2]
[424348555,1780777287000,-300.0,0.00014917,2]
[424348556,1780777323000,1889.94404141,7.6e-05,2]
[424348557,1780777341000,-485.35394292,0.000121,5]
[424348558,1780777344000,-778.61743805,0.0001,2]
[424348561,1780777394000,-2264.97466699,0.0001,2]
[424348562,1780777447000,-7118.3903371,0.00012,2]
[424348564,1780777750000,-500.0,0.00011996,2]
[424348565,1780777750000,-500.0,0.00011996,2]
[424348573,1780777750000,-500.0,0.00011996,2]
[424348569,1780777750000,-500.0,0.00011996,2]
[424348566,1780777750000,-500.0,0.00011996,2]
[424348568,1780777750000,-623.88230932,0.00011996,2]
[424348567,1780777750000,-500.0,0.00011996,2]
[424348570,1780777750000,-517.6584496,0.00011996,2]
[424348571,1780777750000,-500.0,0.00011996,2]
[424348574,1780777750000,-500.0,0.00011996,2]
[424348572,1780777750000,-500.0,0.00011996,2]
[424348583,1780777750000,-500.0,0.00011996,2]
[424348576,1780777750000,-500.0,0.00011996,2]
[424348586,1780777750000,-303.93192851,0.00011996,2]
[424348585,1780777750000,-500.0,0.00011996,2]
[424348584,1780777750000,-500.0,0.00011996,2]
[424348582,1780777750000,-500.0,0.00011996,2]
[424348575,1780777750000,-500.0,0.00011996,2]
[424348580,1780777750000,-500.0,0.00011996,2]
[424348578,1780777750000,-500.0,0.00011996,2]
[424348581,1780777750000,-217.98676092,0.00011996,2]
[424348579,1780777750000,-500.0,0.00011996,2]
[424348577,1780777750000,-500.0,0.00011996,2]
[424348588,1780777789000,-196.06807149,0.00011996,2]
[424349228,1780777842000,-121.11448564,0.00012,2]
[424349249,1780777842000,-9227.8166638,0.00015,2]
[424349251,1780777842000,-300.497988,0.00015068,2]
[424349223,1780777842000,-500.0,0.00012,2]
[424349253,1780777842000,-521.315838,0.00015464,2]
[424349255,1780777842000,-1000.0,0.00015505,2]
[424349258,1780777842000,-170.0,0.00015753,3]
[424349256,1780777842000,-328.09085409,0.00015514,2]
[424349247,1780777842000,-4640.93748564,0.00014457,2]
[424349231,1780777842000,-359.06251436,0.00014457,2]
[424349279,1780777843000,-162.380719,0.00016825,2]
[424349264,1780777843000,-165.1673,0.00016111,2]
[424349266,1780777843000,-165.97,0.00016298,2]
[424349262,1780777843000,-219.0253549,0.00016,2]
[424349274,1780777843000,-480.102431,0.00016586,2]
[424349260,1780777843000,-858.62492179,0.000158,2]
[424349272,1780777843000,-262.45,0.00016389,2]
[424349268,1780777843000,-297.65511661,0.00016331,2]
[424349270,1780777843000,-331.20444748,0.00016331,2]
[424349276,1780777843000,-355.00127629,0.00016812,2]
[424349282,1780777843000,-500.0,0.00016825,2]
[424349288,1780777843000,-16615.49764601,0.00017,2]
[424349278,1780777843000,-151.0,0.00016825,2]
[424349314,1780777843000,-2770.67735365,0.00017097,2]
[424349307,1780777843000,-973.27240735,0.00017097,2]
[424349292,1780777843000,-173.16,0.00017083,2]
[424349290,1780777843000,-206.1235502,0.00017022,2]
[424349294,1780777843000,-442.2522092,0.00017087,2]
[424349284,1780777843000,-172.34,0.00016908,2]
[424349296,1780777843000,-486395.39801584,0.00017097,2]
[424349286,1780777843000,-550.45,0.00016997,2]
[424349464,1780777848000,-5000.0,0.00016926,2]
[424349465,1780777848000,-38339.25422593,0.00017097,2]
[424349467,1780777882000,-152.0,0.00011262,7]
[424349468,1780777899000,-151.0,0.00010924,2]
[424349469,1780777937000,-542.273694,0.00016153,2]
[424349470,1780777954000,-152.0,0.00016217,30]
[424349471,1780778113000,500.0,0.00024496,31]
[424349475,1780778177000,166.66666667,0.00024496,120]
[424349474,1780778177000,166.66666667,0.00024496,120]
[424349473,1780778177000,-655.44,0.00013561,2]
[424349476,1780778191000,-655.44,0.00013561,2]
[424349479,1780778517000,-5000.0,0.00013561,2]
[424349480,1780778767000,189.93181799,0.0002451,120]
[424349481,1780778768000,189.93181799,0.0002451,120]
[424349483,1780778829000,-53.04313273,0.000119,7]
[424349482,1780778829000,-152.0,0.00011317,7]
[424349484,1780778890000,-276.73674417,0.000119,7]
[424349485,1780778944000,-235.86473834,0.000119,7]
[424349486,1780778959000,-408.69090111,0.00013696,2]
[424349488,1780778996000,-288.15,0.00013596,2]
[424349494,1780779032000,-263.0,0.00013695,2]
[424349493,1780779032000,-665.0,0.00013178,2]
[424349496,1780779032000,-91.30909889,0.00013696,2]
[424349495,1780779032000,-500.0,0.00013696,2]
[424349498,1780779032000,-500.0,0.00013696,2]
[424349499,1780779032000,-500.0,0.00013696,2]
[424349501,1780779032000,-500.0,0.00013696,2]
[424349504,1780779032000,-169.30909889,0.00013696,2]
[424349500,1780779032000,-500.0,0.00013696,2]
[424349497,1780779032000,-500.0,0.00013696,2]
[424349502,1780779032000,-450.0,0.00013696,2]
[424349503,1780779032000,-330.69090111,0.00013696,2]
[424349507,1780779032000,-157.75159254,0.00013696,2]
[424349506,1780779032000,-500.0,0.00013696,2]
[424349509,1780779032000,-500.0,0.00013696,2]
[424349508,1780779032000,-500.0,0.00013696,2]
[424349510,1780779032000,-500.0,0.00013696,2]
[424349513,1780779032000,-315.7889521,0.00013696,2]
[424349511,1780779032000,-500.0,0.00013696,2]
[424349505,1780779032000,-500.0,0.00013696,2]
[424349512,1780779032000,-500.0,0.00013696,2]
[424350107,1780779050000,-500.0,0.00013696,2]
[424350111,1780779050000,-500.0,0.00013696,2]
[424350114,1780779050000,-500.0,0.00013696,2]
[424350116,1780779050000,-500.0,0.00013696,2]
[424350126,1780779050000,-500.0,0.00013696,2]
[424350115,1780779050000,-500.0,0.00013696,2]
[424350117,1780779050000,-500.0,0.00013696,2]
[424350118,1780779050000,-500.0,0.00013696,2]
[424350127,1780779050000,-500.0,0.00013696,2]
[424350123,1780779050000,-500.0,0.00013696,2]
[424350109,1780779050000,-500.0,0.00013696,2]
[424350120,1780779050000,-500.0,0.00013696,2]
[424350104,1780779050000,-500.0,0.00013696,2]
[424350098,1780779050000,-500.0,0.00013696,2]
[424350106,1780779050000,-500.0,0.00013696,2]
[424350105,1780779050000,-500.0,0.00013696,2]
[424350108,1780779050000,-632.92340804,0.00013696,2]
[424350110,1780779050000,-500.0,0.00013696,2]
[424350113,1780779050000,-500.0,0.00013696,2]
[424350102,1780779050000,-500.0,0.00013696,2]
[424350103,1780779050000,-500.0,0.00013696,2]
[424350101,1780779050000,-500.0,0.00013696,2]
[424350100,1780779050000,-500.0,0.00013696,2]
[424350097,1780779050000,-500.0,0.00013696,2]
[424350099,1780779050000,-500.0,0.00013696,2]
[424350096,1780779050000,-184.2110479,0.00013696,2]
[424350124,1780779050000,-500.0,0.00013696,2]
[424350112,1780779050000,-500.0,0.00013696,2]
[424350125,1780779050000,-500.0,0.00013696,2]
[424350139,1780779050000,-600.0,0.0001397,2]
[424350121,1780779050000,-500.0,0.00013696,2]
[424350122,1780779050000,-500.0,0.00013696,2]
[424350154,1780779050000,-271.136847,0.00014468,2]
[424350150,1780779050000,-277.9250833,0.00014319,2]
[424350152,1780779050000,-500.0,0.00014319,2]
[424350151,1780779050000,-603.09,0.00014319,2]
[424350149,1780779050000,-500.0,0.00014319,2]
[424350144,1780779050000,-500.0,0.00014319,2]
[424350148,1780779050000,-500.0,0.00014319,2]
[424350146,1780779050000,-500.0,0.00014319,2]
[424350142,1780779050000,-500.0,0.00014319,2]
[424350145,1780779050000,-500.0,0.00014319,2]
[424350153,1780779050000,-7118.3903371,0.0001432,2]
[424350143,1780779050000,-500.0,0.00014319,2]
[424350141,1780779050000,-269.88616682,0.00014319,2]
[424350147,1780779050000,-500.0,0.00014319,2]
[424350137,1780779050000,-1000.0,0.00013699,2]
[424350136,1780779050000,-500.0,0.00013698,2]
[424350128,1780779050000,-407.02833595,0.00013696,2]
[424350130,1780779050000,-500.0,0.00013696,2]
[424350140,1780779050000,-500.0,0.00014319,2]
[424350129,1780779050000,-500.0,0.00013696,2]